bitfinex/quotes_BTCUSD_20250206
["timestamp","ask_amount","ask_price","bid_price","bid_amount"]
[1738840461197,2.04416414,98865.0,98864.0,0.311723]
[1738840461380,2.04416414,98865.0,98864.0,0.34772472]
[1738840461992,2.02393414,98865.0,98864.0,0.34772472]
[1738840462162,0.18439628,98871.0,98870.0,0.344714]
[1738840462362,2.2186969,98871.0,98870.0,0.344714]
[1738840462607,2.2186969,98871.0,98870.0,0.34771457]
[1738840462825,2.2186969,98871.0,98870.0,0.344714]
[1738840463020,2.2186969,98871.0,98870.0,0.34771457]
[1738840464273,2.03430062,98871.0,98870.0,0.43001457]
[1738840465303,2.03430062,98871.0,98870.0,0.43975918]
[1738840466603,2.0345249,98871.0,98870.0,0.43975918]
[1738840467572,2.0345249,98871.0,98870.0,0.45987922]
[1738840469931,2.03430062,98871.0,98870.0,0.45987922]
[1738840474061,2.03430062,98871.0,98870.0,0.37757922]
[1738840474301,2.13680427,98871.0,98870.0,0.35457922]
[1738840474670,2.13680427,98871.0,98870.0,0.35157865]
[1738840475095,2.13680427,98871.0,98870.0,0.34157865]
[1738840475291,2.13680427,98871.0,98870.0,0.35157865]
[1738840475680,2.03430062,98871.0,98870.0,0.37457865]
[1738840475884,2.03430062,98871.0,98870.0,0.45037865]
[1738840476128,2.03430062,98871.0,98870.0,0.45316839]
[1738840476337,2.03430062,98871.0,98870.0,0.50006839]
[1738840478489,0.1707,98886.0,98884.0,0.02]
[1738840478490,0.00768,98885.0,98884.0,0.02]
[1738840478654,2.14448427,98885.0,98884.0,0.321692]
[1738840478851,2.13680427,98885.0,98884.0,0.32447895]
[1738840479074,2.13680427,98885.0,98884.0,0.321692]
[1738840479974,2.14448427,98885.0,98884.0,0.321692]
[1738840481593,2.14448427,98885.0,98884.0,0.33134943]
[1738840486333,2.01407462,98885.0,98884.0,0.33134943]
[1738840486488,2.03430062,98885.0,98884.0,0.33134943]
[1738840487420,1.01292492,98885.0,98884.0,0.33134943]
[1738840487598,1.98578979,98885.0,98884.0,0.33134943]
[1738840488505,1.01292492,98885.0,98884.0,0.20265743]
[1738840488702,1.92511179,98885.0,98884.0,0.35434943]
[1738840489222,1.92511179,98885.0,98884.0,0.33412552]
[1738840490779,1.92511179,98885.0,98884.0,0.16412552]
[1738840490780,2.10801544,98885.0,98884.0,0.16412552]
[1738840490983,2.15693972,98885.0,98884.0,0.16412552]
[1738840492278,2.18843887,98885.0,98884.0,0.16412552]
[1738840493033,2.18843887,98885.0,98884.0,0.16134943]
[1738840493404,2.18843887,98885.0,98884.0,0.16412576]
[1738840494658,2.13973887,98885.0,98884.0,0.16412576]
[1738840494818,2.06697887,98885.0,98884.0,0.17412576]
[1738840495196,2.03547972,98885.0,98884.0,0.17412576]
[1738840495371,2.06699136,98885.0,98884.0,0.17412576]
[1738840496733,2.06699136,98885.0,98884.0,0.17134943]
[1738840498445,2.05935136,98885.0,98884.0,0.17134943]
[1738840498626,2.06699136,98885.0,98884.0,0.17134943]
[1738840499606,2.05935136,98885.0,98884.0,0.17134943]
[1738840499789,2.06699136,98885.0,98884.0,0.17134943]
[1738840501882,2.16949501,98885.0,98884.0,0.16134943]
[1738840502083,2.24799501,98885.0,98884.0,0.16134943]
[1738840502523,2.14549136,98885.0,98884.0,0.16134943]
[1738840502728,2.14549136,98885.0,98884.0,0.16145623]
[1738840504319,2.14549136,98885.0,98884.0,0.16423801]
[1738840507407,2.14549136,98885.0,98884.0,0.16145623]
[1738840508718,0.22037957,98885.0,98884.0,0.16145623]
[1738840508920,0.32020406,98884.0,98883.0,0.202257]
[1738840509137,2.47933114,98884.0,98883.0,0.202257]
[1738840509343,0.1,98877.0,98876.0,0.151705]
[1738840509542,0.23401529,98877.0,98876.0,0.151705]
[1738840512584,0.13401529,98877.0,98876.0,0.151705]
[1738840513024,0.13401529,98877.0,98876.0,0.161705]
[1738840513977,0.11018365,98877.0,98876.0,0.161705]
[1738840515183,0.11018365,98877.0,98876.0,0.1618118]
[1738840517976,0.11018365,98877.0,98876.0,0.16460279]
[1738840518990,0.14167879,98877.0,98876.0,0.16460279]
[1738840523548,0.12141179,98877.0,98876.0,0.16460279]
[1738840523727,0.00764,98879.0,98878.0,0.151702]
[1738840523931,0.14165635,98879.0,98878.0,0.151702]
[1738840524132,0.11014365,98879.0,98878.0,0.151702]
[1738840524333,0.14166332,98879.0,98878.0,0.161702]
[1738840524629,2.6e-07,98876.0,98875.0,0.161706]
[1738840525140,2.6e-07,98876.0,98875.0,0.16449699]
[1738840530754,2.6e-07,98876.0,98875.0,0.15449699]
[1738840530965,0.10250391,98876.0,98875.0,0.15449699]
[1738840531565,0.10250391,98876.0,98875.0,0.00279099]
[1738840531737,0.13402003,98876.0,98874.0,0.16174065]
[1738840531941,0.13401977,98875.0,98874.0,0.151708]
[1738840532964,0.13401977,98875.0,98874.0,0.15449619]
[1738840533945,0.13401977,98875.0,98874.0,0.00278819]
[1738840534148,0.16527177,98875.0,98874.0,0.00278819]
[1738840534380,0.16527177,98875.0,98874.0,0.151708]
[1738840534591,0.16527177,98875.0,98874.0,0.15449619]
[1738840534984,0.16527177,98875.0,98874.0,0.00278819]
[1738840535559,0.16527177,98875.0,98872.0,0.15171]
[1738840535765,0.13375565,98875.0,98874.0,0.00278819]
[1738840535988,0.16526073,98875.0,98873.0,0.00278838]
[1738840536188,0.13375565,98875.0,98874.0,0.00278819]
[1738840536391,0.13400492,98875.0,98874.0,0.00278819]
[1738840536609,0.13400492,98875.0,98873.0,0.151708]
[1738840536806,0.10250365,98875.0,98874.0,0.00278819]
[1738840536953,0.13400612,98875.0,98874.0,0.00278819]
[1738840537615,0.13400612,98875.0,98874.0,0.15449619]
[1738840537761,0.63969612,98875.0,98874.0,0.15449619]
[1738840540272,0.63969612,98875.0,98874.0,0.15460299]
[1738840540704,0.63969612,98875.0,98874.0,0.00289499]
[1738840540919,0.63969612,98875.0,98874.0,0.15460299]
[1738840541135,0.63969612,98875.0,98874.0,0.1518148]
[1738840541326,0.63969612,98875.0,98874.0,0.15460299]
[1738840544015,0.64729612,98875.0,98874.0,0.15460299]
[1738840547881,0.65837199,98875.0,98874.0,0.00289499]
[1738840548056,0.1,98874.0,98870.0,0.01025219]
[1738840548294,0.10250365,98872.0,98870.0,0.01025219]
[1738840548517,0.60819365,98872.0,98870.0,0.01025219]
[1738840548705,0.03150247,98871.0,98870.0,0.01025219]
[1738840548912,0.63969612,98871.0,98870.0,0.01025219]
[1738840549243,0.63969612,98871.0,98870.0,0.0001068]
[1738840550440,0.63969612,98871.0,98860.0,0.0001068]
[1738840550441,0.1,98861.0,98860.0,0.0001068]
[1738840550595,3.25074201,98861.0,98860.0,0.0001068]
[1738840550787,3.28224448,98861.0,98860.0,0.1518358]
[1738840551426,3.18224448,98861.0,98860.0,0.1518358]
[1738840554949,3.18984448,98861.0,98860.0,0.1518358]
[1738840556166,3.18984448,98861.0,98860.0,0.0001068]
[1738840556364,3.28505369,98861.0,98860.0,0.0001068]
[1738840556911,0.2,98849.0,98839.0,0.202347]
[1738840557251,0.2,98849.0,98825.0,0.202377]
[1738840557252,2.76480791,98849.0,98848.0,0.00018638]
[1738840557461,2.85059554,98849.0,98848.0,0.00018638]
[1738840557900,2.93249554,98849.0,98848.0,0.00018638]
[1738840558843,2.84670791,98849.0,98848.0,0.00018638]
[1738840560087,2.89530791,98849.0,98848.0,0.00018638]
[1738840560288,3.45830791,98849.0,98848.0,0.00018638]
[1738840560876,3.51488409,98849.0,98848.0,0.00018638]
[1738840561100,0.2,98814.0,98810.0,0.151805]
[1738840561297,3.53454448,98814.0,98813.0,0.00324903]
[1738840561508,3.51454448,98814.0,98813.0,0.00019128]
[1738840563480,3.38984448,98814.0,98813.0,0.00019128]
[1738840567162,3.38224448,98814.0,98813.0,0.00019128]
[1738840567338,3.38984448,98814.0,98813.0,0.00019128]
[1738840571028,3.65284448,98814.0,98813.0,0.00019128]
[1738840571778,3.75534813,98814.0,98813.0,0.00019128]
[1738840572186,3.72384566,98814.0,98813.0,0.00019128]
[1738840572692,0.2,98793.0,98792.0,0.01]
[1738840572908,3.18752832,98793.0,98792.0,0.161834]
[1738840574381,3.19512832,98793.0,98792.0,0.161834]
[1738840575725,3.29763197,98793.0,98789.0,0.20245]
[1738840575937,0.2,98766.0,98765.0,6.47054844]
[1738840576155,3.66151836,98766.0,98765.0,5.03230736]
[1738840576372,3.66151836,98766.0,98730.0,0.13780028]
[1738840576373,0.11,98731.0,98730.0,7e-05]
[1738840576585,3.24841836,98731.0,98730.0,7e-05]
[1738840576786,3.24841836,98731.0,98729.0,0.15193]
[1738840576787,3.55482201,98731.0,98729.0,0.13116543]
[1738840576994,0.2084273,98730.0,98729.0,0.13116543]
[1738840577220,0.2084273,98730.0,98724.0,0.1520448]
[1738840577221,0.1,98726.0,98724.0,0.1520448]
[1738840577444,0.10250365,98725.0,98724.0,0.1520448]
[1738840577630,0.11042365,98725.0,98724.0,0.1520448]
[1738840578030,0.21042365,98725.0,98724.0,0.1520448]
[1738840578241,0.21042365,98725.0,98724.0,0.3020448]
[1738840578443,0.20250365,98725.0,98724.0,0.3020448]
[1738840578699,0.20250365,98725.0,98724.0,0.3904923]
[1738840578867,0.1,98725.0,98724.0,0.3841448]
[1738840579081,0.2,98725.0,98724.0,0.4296448]
[1738840579230,0.1,98725.0,98724.0,0.4296448]
[1738840579434,0.1,98725.0,98724.0,0.4526448]
[1738840580133,0.1,98725.0,98724.0,0.45911031]
[1738840580490,0.1,98725.0,98724.0,0.45749393]
[1738840581070,0.1,98725.0,98724.0,0.5588005]
[1738840581296,0.16224748,98731.0,98730.0,0.173]
[1738840581496,0.93397274,98731.0,98730.0,0.17946242]
[1738840581709,0.88397274,98731.0,98730.0,0.17946242]
[1738840581924,0.88037266,98731.0,98730.0,0.19986077]
[1738840582370,0.88037266,98731.0,98730.0,0.06221397]
[1738840582563,0.88037266,98731.0,98730.0,0.06321397]
[1738840584520,0.88037266,98731.0,98730.0,0.06221397]
[1738840584721,0.88037266,98731.0,98730.0,0.06321397]
[1738840586139,0.98037266,98731.0,98730.0,0.06321397]
[1738840586343,0.98037266,98731.0,98730.0,0.03859836]
[1738840586553,1.08287631,98731.0,98730.0,0.01820001]
[1738840586748,1.08287631,98731.0,98730.0,0.00584681]
[1738840587154,1.08287631,98731.0,98730.0,0.00484681]
[1738840588001,1.18537996,98731.0,98730.0,0.00484681]
[1738840588242,1.08287631,98731.0,98729.0,0.151931]
[1738840588436,0.52871734,98730.0,98729.0,0.151931]
[1738840588866,0.59676424,98730.0,98729.0,0.151931]
[1738840590326,0.59676424,98730.0,98724.0,0.00056952]
[1738840590533,0.59676424,98730.0,98729.0,0.00484432]
[1738840590756,0.1707,98725.0,98724.0,0.00056952]
[1738840590977,0.36177343,98725.0,98724.0,0.00056952]
[1738840591782,0.1,98721.0,98720.0,0.13773028]
[1738840591984,2.30620123,98721.0,98715.0,0.151952]
[1738840592190,0.10250365,98716.0,98714.0,0.0001068]
[1738840592396,0.10250365,98715.0,98714.0,0.0001068]
[1738840592620,0.17055055,98715.0,98714.0,0.0001068]
[1738840592827,0.17055055,98715.0,98700.0,0.13773028]
[1738840592828,0.2,98701.0,98700.0,0.13773028]
[1738840593049,0.2,98701.0,98673.0,0.08114125]
[1738840593050,0.2,98692.0,98691.0,0.34038128]
[1738840593257,0.37055055,98692.0,98691.0,0.202651]
[1738840593875,0.41930505,98692.0,98691.0,0.225651]
[1738840594295,0.41930505,98692.0,98691.0,0.23795239]
[1738840594505,0.41976891,98692.0,98691.0,0.23795239]
[1738840594656,0.31976891,98692.0,98691.0,0.31605239]
[1738840594856,0.21726526,98692.0,98691.0,0.46605239]
[1738840595069,0.21726526,98692.0,98691.0,0.55521147]
[1738840595297,0.21726526,98692.0,98691.0,0.46605239]
[1738840597159,0.08726249,98692.0,98691.0,0.46605239]
[1738840597733,0.0130325,98692.0,98691.0,0.26340139]
[1738840597938,5e-07,98692.0,98691.0,0.26340139]
[1738840598157,5e-07,98692.0,98691.0,0.53494637]
[1738840598352,5e-07,98692.0,98691.0,0.46605239]
[1738840600861,5e-07,98692.0,98691.0,0.46615929]
[1738840601067,0.2,98720.0,98719.0,0.301946]
[1738840601279,1.96446168,98720.0,98719.0,0.324946]
[1738840606503,1.96446168,98720.0,98719.0,0.33730953]
[1738840607096,2.06696533,98720.0,98719.0,0.16430953]
[1738840607902,2.07564533,98720.0,98719.0,0.16927512]
[1738840608614,2.06696533,98720.0,98719.0,0.19227512]
[1738840610294,1.96446168,98720.0,98719.0,0.19227512]
[1738840610451,1.86446168,98720.0,98719.0,0.19227512]
[1738840611109,1.84420268,98720.0,98719.0,0.27067512]
[1738840611343,1.01292578,98720.0,98719.0,0.27067512]
[1738840611592,1.68342568,98720.0,98719.0,0.27233031]
[1738840611774,1.68342568,98720.0,98719.0,0.42233031]
[1738840612305,1.64676569,98720.0,98719.0,0.42233031]
[1738840612505,0.1707,98735.0,98719.0,0.42233031]
[1738840612506,0.1707,98735.0,98734.0,0.324923]
[1738840612717,1.89720669,98735.0,98734.0,0.324923]
[1738840612925,1.89720669,98735.0,98734.0,0.36399877]
[1738840613141,1.72650669,98735.0,98734.0,0.36399877]
[1738840613346,1.60625069,98735.0,98734.0,0.36399877]
[1738840613553,1.54548269,98735.0,98734.0,0.36399877]
[1738840613753,1.54548269,98735.0,98734.0,0.38466015]
[1738840614106,1.54548269,98735.0,98734.0,0.46336015]
[1738840614521,1.48471469,98735.0,98734.0,0.46336015]
[1738840615289,0.47178977,98735.0,98734.0,0.46336015]
[1738840615465,1.01292492,98735.0,98734.0,0.46336015]
[1738840615685,1.40369069,98735.0,98734.0,0.46336015]
[1738840616076,1.40369069,98735.0,98734.0,0.44663456]
[1738840616425,1.40369069,98735.0,98734.0,0.36793456]
[1738840616552,1.40369069,98735.0,98734.0,0.36893456]
[1738840616958,1.40369069,98735.0,98734.0,0.37067177]
[1738840617186,1.40369069,98735.0,98734.0,0.36967177]
[1738840617342,1.40369069,98735.0,98734.0,0.39263812]
[1738840617759,1.40369069,98735.0,98734.0,0.36967177]
[1738840618699,1.01292492,98735.0,98734.0,0.36967177]
[1738840618953,1.32266669,98735.0,98734.0,0.37130686]
[1738840619522,1.26189869,98735.0,98734.0,0.37130686]
[1738840620354,1.24164269,98735.0,98734.0,0.37130686]
[1738840620737,0.1,98737.0,98736.0,0.30192]
[1738840620937,1.32138669,98737.0,98736.0,0.32492]
[1738840621142,1.32138669,98737.0,98736.0,0.33146895]
[1738840621594,1.42389034,98737.0,98736.0,0.17982977]
[1738840622362,1.32138669,98737.0,98736.0,0.17982977]
[1738840622984,1.32138669,98737.0,98736.0,0.18143127]
[1738840623759,1.32138669,98737.0,98736.0,0.42426485]
[1738840623959,1.32138669,98737.0,98736.0,0.33143127]
[1738840624160,1.33966324,98737.0,98736.0,0.33143127]
[1738840624597,1.33988774,98737.0,98736.0,0.33143127]
[1738840624802,1.44239139,98737.0,98736.0,0.33143127]
[1738840625005,1.44239139,98737.0,98736.0,0.32980139]
[1738840626068,1.44239139,98737.0,98736.0,0.15680139]
[1738840626501,1.44239139,98737.0,98736.0,0.17980139]
[1738840629876,1.34860774,98737.0,98736.0,0.17980139]
[1738840630298,1.34860774,98737.0,98736.0,0.26060139]
[1738840632253,1.33988774,98737.0,98736.0,0.26060139]
[1738840632640,1.32161119,98737.0,98736.0,0.26060139]
[1738840633602,1.35299739,98737.0,98736.0,0.26060139]
[1738840633823,1.32161119,98737.0,98736.0,0.26060139]
[1738840633983,1.35299698,98737.0,98736.0,0.26060139]
[1738840634229,1.32161119,98737.0,98736.0,0.26060139]
[1738840634426,1.01314942,98737.0,98736.0,0.41060139]
[1738840634691,1.16084319,98737.0,98736.0,0.41060139]
[1738840635254,0.14769377,98737.0,98736.0,0.51126408]
[1738840635433,0.1,98748.0,98747.0,0.324903]
[1738840635635,1.19985269,98748.0,98747.0,0.324903]
[1738840635833,1.19985269,98748.0,98747.0,0.33141391]
[1738840636055,1.29985269,98748.0,98747.0,0.33141391]
[1738840636804,1.29985269,98748.0,98747.0,0.35124671]
[1738840638386,1.40235634,98748.0,98747.0,0.35124671]
[1738840638595,1.40235634,98748.0,98747.0,0.36669018]
[1738840638739,1.40235634,98748.0,98747.0,0.36505748]
[1738840639760,1.40235634,98748.0,98747.0,0.36668355]
[1738840640132,1.20235634,98748.0,98747.0,0.46411541]
[1738840640382,1.09985269,98748.0,98747.0,0.46411541]
[1738840640586,1.09985269,98748.0,98747.0,0.36668355]
[1738840645523,1.13126855,98748.0,98747.0,0.36668355]
[1738840646146,1.09985269,98748.0,98747.0,0.15730765]
[1738840647676,1.05934469,98748.0,98747.0,0.17765849]
[1738840647832,1.15934469,98748.0,98747.0,0.17765849]
[1738840648068,1.26184834,98748.0,98747.0,0.17765849]
[1738840648692,1.26207284,98748.0,98747.0,0.17765849]
[1738840648946,1.30727284,98748.0,98747.0,0.00540465]
[1738840649291,0.2,98738.0,98737.0,0.1520249]
[1738840649493,1.36184834,98738.0,98737.0,0.0001069]
[1738840650060,1.86823834,98738.0,98737.0,0.0001069]
[1738840651073,1.97074199,98738.0,98737.0,0.0001069]
[1738840651637,1.86823834,98738.0,98737.0,0.0001069]
[1738840652779,1.87679834,98738.0,98737.0,0.0001069]
[1738840654262,1.87679834,98738.0,98737.0,0.1520249]
[1738840655311,1.87679834,98738.0,98737.0,0.15196049]
[1738840656225,1.9081792,98738.0,98737.0,0.15196049]
[1738840656378,1.9081792,98738.0,98737.0,0.15185359]
[1738840656797,0.2267,98737.0,98735.0,0.0001069]
[1738840657054,0.2267,98737.0,98712.0,0.0001069]
[1738840657055,0.0456,98714.0,98712.0,0.0001069]
[1738840657252,0.0456,98714.0,98712.0,0.1520639]
[1738840657253,0.75132108,98713.0,98712.0,0.1520639]
[1738840657389,1.26627108,98713.0,98712.0,0.15220279]
[1738840658771,0.77709,98713.0,98712.0,0.23190279]
[1738840658946,0.732829,98713.0,98712.0,0.23190279]
[1738840659176,0.732829,98713.0,98712.0,0.32618126]
[1738840659177,0.612568,98713.0,98712.0,0.32618126]
[1738840659377,0.71507165,98713.0,98712.0,0.16762651]
[1738840659492,0.71507165,98713.0,98712.0,0.15220279]
[1738840664693,0.72359165,98713.0,98712.0,0.15220279]
[1738840666522,0.72359165,98713.0,98711.0,0.20261]
[1738840666727,0.10250365,98712.0,98711.0,0.20261]
[1738840666902,0.60889365,98712.0,98711.0,0.20261]
[1738840668593,0.2,98694.0,98691.0,0.2346879]
[1738840668795,2.25419191,98694.0,98693.0,0.20672672]
[1738840670210,2.25419191,98694.0,98693.0,0.00407872]
[1738840670409,2.29979191,98694.0,98693.0,0.15606472]
[1738840670821,2.25419191,98694.0,98693.0,0.15606472]
[1738840671677,2.26267191,98694.0,98693.0,0.15606472]
[1738840672660,2.26267191,98694.0,98693.0,0.15617152]
[1738840675544,2.15419191,98694.0,98693.0,0.15617152]
[1738840675754,2.26263191,98694.0,98693.0,0.15617152]
[1738840681095,2.29390716,98694.0,98693.0,0.15617152]
[1738840682762,2.28546716,98694.0,98693.0,0.15617152]
[1738840682903,2.29386716,98694.0,98693.0,0.15617152]
[1738840685367,2.39641081,98694.0,98693.0,0.15617152]
[1738840685521,2.29390716,98694.0,98693.0,0.15617152]
[1738840689193,2.29390716,98694.0,98693.0,0.17552222]
[1738840689563,2.29390716,98694.0,98693.0,0.00418552]
[1738840689752,2.70140716,98694.0,98693.0,0.0001068]
[1738840689957,0.35,98679.0,98631.0,0.0773]
[1738840690173,0.15,98678.0,98631.0,0.0773]
[1738840690382,0.35,98667.0,98644.0,0.01976336]
[1738840690594,0.35,98667.0,98659.0,0.202718]
[1738840690595,2.33296351,98667.0,98659.0,0.202718]
[1738840690801,2.44596351,98667.0,98666.0,0.1521348]
[1738840691012,2.45440351,98667.0,98666.0,0.1521348]
[1738840691215,2.5570462,98667.0,98666.0,0.1521348]
[1738840691438,2.5570462,98667.0,98666.0,0.2335348]
[1738840691439,2.5080662,98667.0,98666.0,0.2335348]
[1738840691649,1.66587373,98667.0,98666.0,0.2565348]
[1738840691855,1.56587373,98667.0,98666.0,0.42634845]
[1738840692310,1.54560373,98667.0,98666.0,0.42634845]
[1738840692486,1.46452373,98667.0,98666.0,0.54880976]
[1738840692691,1.36961714,98667.0,98666.0,0.54880976]
[1738840693408,1.32907714,98667.0,98666.0,0.54880976]
[1738840693588,1.26826714,98667.0,98666.0,0.44630611]
[1738840695029,1.24799714,98667.0,98666.0,0.44730611]
[1738840695227,1.18718714,98667.0,98666.0,0.44730611]
[1738840695359,1.14664714,98667.0,98666.0,0.44730611]
[1738840695766,1.12637714,98667.0,98666.0,0.54980976]
[1738840695979,1.10610714,98667.0,98666.0,0.54980976]
[1738840696151,1.06556714,98667.0,98666.0,0.54980976]
[1738840697017,0.08114125,98699.0,98666.0,0.54980976]
[1738840697018,0.08114125,98699.0,98698.0,0.151978]
[1738840697219,1.19670907,98699.0,98698.0,0.151978]
[1738840697412,1.11556782,98699.0,98698.0,0.151978]
[1738840698494,1.12400782,98699.0,98698.0,0.151978]
[1738840707026,1.15540172,98699.0,98698.0,0.151978]
[1738840708005,1.15562622,98699.0,98698.0,0.151978]
[1738840709666,1.24571567,98699.0,98698.0,0.151978]
[1738840712475,1.15562622,98699.0,98698.0,0.151978]
[1738840721714,1.66221622,98699.0,98698.0,0.151978]
[1738840724124,0.2,98690.0,98689.0,0.29009602]
[1738840724334,0.84048755,98690.0,98689.0,0.151992]
[1738840724530,0.84876755,98690.0,98689.0,0.151992]
[1738840726937,0.84876755,98690.0,98689.0,0.22304159]
[1738840727455,0.84876755,98690.0,98689.0,0.151992]
[1738840727456,0.5379839,98690.0,98689.0,0.151992]
[1738840727698,0.5379839,98690.0,98689.0,0.222692]
[1738840728477,0.64048755,98690.0,98689.0,0.151992]
[1738840729130,0.5379839,98690.0,98689.0,0.151992]
[1738840731998,0.53820818,98690.0,98689.0,0.151992]
[1738840732702,0.53820818,98690.0,98689.0,0.21308789]
[1738840733352,0.53820818,98690.0,98689.0,0.174992]
[1738840736297,0.54620818,98690.0,98689.0,0.175992]
[1738840736458,0.54620818,98690.0,98689.0,0.174992]
[1738840736796,0.54620818,98690.0,98689.0,0.175992]
[1738840737092,0.55420818,98690.0,98689.0,0.175992]
[1738840738146,0.49341318,98690.0,98689.0,0.26669138]
[1738840738945,0.43261818,98690.0,98689.0,0.26669138]
[1738840739151,0.29011818,98690.0,98689.0,0.54469138]
[1738840739305,0.140073,98690.0,98689.0,0.54469138]
[1738840739545,0.05157581,98690.0,98689.0,0.54569138]
[1738840739767,0.03112581,98690.0,98689.0,0.54469138]
[1738840739974,0.03112581,98690.0,98689.0,0.54569138]
[1738840740202,0.03912581,98690.0,98689.0,0.54569138]
[1738840740435,0.10904175,98709.0,98708.0,0.174963]
[1738840740633,0.10824,98721.0,98711.0,0.151958]
[1738840740854,1.01314942,98712.0,98711.0,0.32597092]
[1738840741059,1.01314942,98712.0,98711.0,0.324958]
[1738840741817,0.00824,98729.0,98728.0,0.151932]
[1738840742063,1.02116492,98729.0,98728.0,0.227932]
[1738840742268,1.02116492,98729.0,98728.0,0.2709832]
[1738840743068,1.02624015,98729.0,98728.0,0.2709832]
[1738840743884,1.01800015,98729.0,98728.0,0.2939832]
[1738840744245,1.01800015,98729.0,98728.0,0.250932]
[1738840744809,1.01300015,98729.0,98728.0,0.400932]
[1738840744960,0.09065172,98740.0,98728.0,0.400932]
[1738840744961,0.09065172,98740.0,98739.0,0.151915]
[1738840745161,1.10357664,98740.0,98739.0,0.174915]
[1738840745889,1.10357664,98740.0,98739.0,0.169915]
[1738840746089,1.10357664,98740.0,98739.0,0.3086183]
[1738840746477,1.10357664,98740.0,98739.0,0.251115]
[1738840747447,1.10357664,98740.0,98739.0,0.2682942]
[1738840747824,0.1359,98742.0,98739.0,0.1213792]
[1738840748037,1.01292492,98740.0,98739.0,0.3239322]
[1738840757017,1.0131492,98740.0,98739.0,0.3239322]
[1738840757219,1.11565285,98740.0,98739.0,0.2197322]
[1738840757417,1.12381285,98740.0,98739.0,0.2197322]
[1738840758083,1.12381285,98740.0,98739.0,0.202553]
[1738840763335,1.22381285,98740.0,98739.0,0.202553]
[1738840763744,1.1213092,98740.0,98739.0,0.202553]
[1738840764325,1.1131492,98740.0,98739.0,0.202553]
[1738840764521,1.1213492,98740.0,98739.0,0.202553]
[1738840764972,1.1131492,98740.0,98739.0,0.280153]
[1738840765182,1.1213492,98740.0,98739.0,0.280153]
[1738840769548,1.1213492,98740.0,98739.0,0.2026597]
[1738840770376,1.15272893,98740.0,98739.0,0.2026597]
[1738840770880,1.2552324,98740.0,98739.0,0.2026597]
[1738840772606,1.14452875,98740.0,98739.0,0.2026597]
[1738840772778,1.15268875,98740.0,98739.0,0.2256597]
[1738840772948,1.1213092,98740.0,98739.0,0.3069597]
[1738840773355,1.1527487,98740.0,98739.0,0.3069597]
[1738840773556,1.1527487,98740.0,98739.0,0.2256597]
[1738840773927,1.25525235,98740.0,98739.0,0.2026597]
[1738840776722,1.27359249,98740.0,98739.0,0.0001067]
[1738840776939,1.27359249,98740.0,98739.0,0.2026597]
[1738840778255,0.26066757,98740.0,98739.0,0.2026597]
[1738840779186,0.26066757,98740.0,98739.0,0.26343747]
[1738840779320,0.25250757,98740.0,98739.0,0.26343747]
[1738840779517,0.05000392,98740.0,98739.0,0.28643747]
[1738840779719,0.03166378,98740.0,98739.0,0.28643747]
[1738840779943,0.00022428,98740.0,98739.0,0.28643747]
[1738840780145,0.1359,98742.0,98741.0,0.151912]
[1738840780146,0.03485028,98742.0,98741.0,0.151912]
[1738840780355,1.01292492,98742.0,98741.0,0.15469621]
[1738840780513,1.01292492,98742.0,98741.0,0.30559561]
[1738840780915,1.08271071,98742.0,98741.0,0.30559561]
[1738840781183,1.08271071,98742.0,98741.0,0.258112]
[1738840781879,1.08771071,98742.0,98741.0,0.258112]
[1738840783251,1.19021436,98742.0,98741.0,0.151912]
[1738840783662,1.22167974,98742.0,98741.0,0.151912]
[1738840784602,1.15189395,98742.0,98741.0,0.151912]
[1738840786043,1.15189395,98742.0,98741.0,0.183669]
[1738840786244,1.12042857,98742.0,98741.0,0.183669]
[1738840786625,1.22042857,98742.0,98741.0,0.183669]
[1738840786977,1.22042857,98742.0,98741.0,0.151912]
[1738840788346,1.12042857,98742.0,98741.0,0.151912]
[1738840790174,1.15190878,98742.0,98741.0,0.151912]
[1738840792414,1.14690878,98742.0,98741.0,0.151912]
[1738840792821,1.15190878,98742.0,98741.0,0.1520187]
[1738840794296,1.15190878,98742.0,98741.0,0.22977866]
[1738840794497,1.15690878,98742.0,98741.0,0.22977866]
[1738840794633,1.15690878,98742.0,98741.0,0.1520187]
[1738840795030,1.14690878,98742.0,98741.0,0.1520187]
[1738840795474,1.15190878,98742.0,98741.0,0.1520187]
[1738840795718,1.14690878,98742.0,98741.0,0.1520187]
[1738840796076,1.15190878,98742.0,98741.0,0.1520187]
[1738840796664,1.15190878,98742.0,98741.0,0.16932253]
[1738840797136,1.15190878,98742.0,98741.0,0.1520187]
[1738840797466,1.15752513,98742.0,98741.0,0.1520187]
[1738840797829,1.15752513,98742.0,98741.0,0.2546187]
[1738840797830,1.14940513,98742.0,98741.0,0.2546187]
[1738840798034,1.04440513,98742.0,98741.0,0.2546187]
[1738840798237,1.01792492,98742.0,98741.0,0.2546187]
[1738840798373,1.01292492,98742.0,98741.0,0.34263866]
[1738840798573,0.00022408,98747.0,98746.0,0.151904]
[1738840798971,0.00022408,98747.0,98746.0,0.197804]
[1738840798972,1.013149,98747.0,98746.0,0.197804]
[1738840800848,1.013149,98747.0,98746.0,0.17188543]
[1738840801004,1.21565265,98747.0,98746.0,0.151904]
[1738840801206,1.26021422,98747.0,98746.0,0.151904]
[1738840801904,1.05771057,98747.0,98746.0,0.151904]
[1738840802248,1.018149,98747.0,98746.0,0.27447139]
[1738840802448,1.018149,98747.0,98746.0,0.32327139]
[1738840803197,5e-07,98748.0,98747.0,0.174903]
[1738840803400,0.27915176,98757.0,98756.0,0.151889]
[1738840803642,1.29207668,98757.0,98756.0,0.174889]
[1738840803842,1.25157268,98757.0,98756.0,0.3310359]
[1738840804098,1.23132068,98757.0,98756.0,0.3310359]
[1738840804287,1.14882492,98757.0,98756.0,0.3310359]
[1738840804503,0.07043075,98758.0,98757.0,0.023]
[1738840804676,1.06310367,98758.0,98757.0,0.2994]
[1738840804832,1.06310367,98758.0,98757.0,0.39285829]
[1738840805040,1.01292492,98758.0,98757.0,0.54474529]
[1738840805265,1.01292492,98758.0,98757.0,0.64724894]
[1738840805437,1.01292492,98758.0,98757.0,0.66304108]
[1738840805632,1.01792492,98758.0,98757.0,0.86555708]
[1738840807281,1.01292492,98758.0,98757.0,0.86555708]
[1738840807654,1.01292492,98758.0,98757.0,0.66959514]
[1738840810448,1.01392492,98758.0,98757.0,0.66959514]
[1738840811062,1.01492492,98758.0,98757.0,0.66959514]
[1738840811276,1.01292492,98758.0,98757.0,0.66959514]
[1738840811682,1.01392492,98758.0,98757.0,0.66959514]
[1738840812035,1.01392492,98758.0,98757.0,0.73987155]
[1738840813303,1.01292492,98758.0,98757.0,0.73987155]
[1738840813706,1.01392492,98758.0,98757.0,0.73987155]
[1738840814052,1.01292492,98758.0,98757.0,0.73987155]
[1738840814255,1.01392492,98758.0,98757.0,0.73987155]